fUSD/lending_fUSD_20251002
["ID","MTS","AMOUNT","RATE_DAILY","PERIOD"]
[388837848,1759410633018,-469.00185499,0.00021639,2]
[388837849,1759410633028,-16267.55460123,0.00021641,2]
[388837850,1759410633038,-187.1296913,0.00021643,2]
[388837851,1759410633047,-190.91087746,0.00021644,2]
[388837852,1759410633056,-469.00185499,0.00021645,2]
[388837853,1759410633067,-341.83640168,0.00021648,2]
[388837854,1759410633077,-180.47112458,0.00021651,2]
[388837855,1759410633088,-169.63802576,0.00021651,2]
[388837856,1759410633099,-190.91087746,0.00021664,2]
[388837857,1759410633109,-447.59142586,0.00021666,2]
[388837858,1759410633119,-180.47112458,0.00021669,2]
[388837859,1759410633129,-928.72,0.00021669,2]
[388837860,1759410633141,-180.47112458,0.0002167,2]
[388837861,1759410633154,-928.72,0.0002167,2]
[388837862,1759410633164,-2483.25790595,0.0002167,2]
[388837863,1759410633173,-195.0,0.00021671,2]
[388837864,1759410633279,-195.0,0.00021672,2]
[388837865,1759410633289,-300.0,0.00021672,2]
[388837866,1759410633299,-1736.17,0.00021672,2]
[388837867,1759410633309,-250.0,0.00021672,2]
[388837868,1759410633318,-2500.0,0.00021672,2]
[388837869,1759410633328,-7681.61225551,0.00021675,2]
[388837870,1759410633368,-778.54212568,0.00021675,2]
[388837871,1759410633401,-36871.01926333,0.00021675,2]
[388837872,1759410633412,-1459.41560526,0.00021675,2]
[388837873,1759410633432,-943.29775045,0.00021675,2]
[388837874,1759410633474,-16661.42789831,0.00021675,2]
[388837875,1759410633486,-654.9264217,0.00021675,2]
[388837876,1759410633522,-5639.03050574,0.00021675,2]
[388837877,1759410633536,-1390.06814635,0.00021675,2]
[388837878,1759410633547,-4808.82070651,0.00021675,2]
[388837896,1759410637886,-6523.19076568,0.00021675,2]
[388837898,1759410637897,-3090.66009148,0.00021675,2]
[388837900,1759410637907,-187.1296913,0.00021676,2]
[388837902,1759410637916,-447.59142586,0.00021678,2]
[388837904,1759410637926,-500.0,0.00021679,2]
[388837905,1759410637936,-500.0,0.00021679,2]
[388837906,1759410637946,-500.0,0.00021679,2]
[388837907,1759410637956,-500.0,0.00021679,2]
[388837908,1759410637966,-500.0,0.00021679,2]
[388837909,1759410637976,-500.0,0.00021679,2]
[388837910,1759410637986,-500.0,0.00021679,2]
[388837911,1759410637995,-448.181073,0.00021679,2]
[388837912,1759410638051,-51.818927,0.00021679,2]
[388837913,1759410638062,-500.0,0.00021679,2]
[388837914,1759410638072,-500.0,0.00021679,2]
[388837915,1759410638081,-258.181073,0.00021679,2]
[388837916,1759410638120,-241.818927,0.00021679,2]
[388837917,1759410638130,-500.0,0.00021679,2]
[388837918,1759410638140,-500.0,0.00021679,2]
[388837919,1759410638154,-500.0,0.00021679,2]
[388837920,1759410638164,-500.0,0.00021679,2]
[388837921,1759410638173,-500.0,0.00021679,2]
[388837922,1759410638183,-329.54540093,0.00021679,2]
[388837923,1759410638199,-170.45459907,0.00021679,2]
[388837924,1759410638208,-382.789729,0.00021679,2]
[388837925,1759410638219,-114.91826846,0.00021679,2]
[388837926,1759410638231,-385.08173154,0.00021679,2]
[388837927,1759410638241,-500.0,0.00021679,2]
[388837928,1759410638251,-500.0,0.00021679,2]
[388837929,1759410638260,-500.0,0.00021679,2]
[388837930,1759410638270,-486.97663655,0.00021679,2]
[388837931,1759410638279,-500.0,0.00021679,2]
[388837932,1759410638289,-500.0,0.00021679,2]
[388837933,1759410638298,-500.0,0.00021679,2]
[388837934,1759410638308,-500.0,0.00021679,2]
[388837935,1759410638319,-500.0,0.00021679,2]
[388837936,1759410638329,-500.0,0.00021679,2]
[388837937,1759410638339,-155.13059824,0.0002168,2]
[388837938,1759410638349,-60872.00423708,0.0002168,2]
[388837939,1759410638358,-928.72,0.00021681,2]
[388837940,1759410638368,-447.59142586,0.00021686,2]
[388837941,1759410638377,-200.0,0.00021687,2]
[388837942,1759410638387,-200.0,0.00021687,2]
[388837943,1759410638396,-200.0,0.00021687,2]
[388837944,1759410638406,-151.0,0.00021687,2]
[388837945,1759410638415,-151.0,0.00021687,2]
[388837946,1759410638425,-151.0,0.00021687,2]
[388837947,1759410638434,-151.0,0.00021687,2]
[388837948,1759410638443,-151.0,0.00021687,2]
[388837949,1759410638453,-151.0,0.00021687,2]
[388837950,1759410638462,-151.0,0.00021687,2]
[388837951,1759410638473,-151.0,0.00021687,2]
[388837952,1759410638482,-151.0,0.00021687,2]
[388837953,1759410638492,-151.0,0.00021687,2]
[388837954,1759410638501,-151.0,0.00021687,2]
[388837955,1759410638510,-151.0,0.00021687,2]
[388837956,1759410638519,-151.0,0.00021687,2]
[388837957,1759410638529,-151.0,0.00021687,2]
[388837958,1759410638538,-151.0,0.00021687,2]
[388837959,1759410638547,-322.6107,0.00021687,2]
[388837960,1759410638556,-151.0,0.00021687,2]
[388837961,1759410638566,-151.0,0.00021687,2]
[388837962,1759410638575,-151.0,0.00021687,2]
[388837963,1759410638585,-151.0,0.00021687,2]
[388837964,1759410638595,-500.0,0.00021687,2]
[388837965,1759410638604,-151.0,0.00021687,2]
[388837966,1759410638614,-151.0,0.00021687,2]
[388837967,1759410638624,-500.0,0.00021687,2]
[388837968,1759410638635,-151.0,0.00021687,2]
[388837969,1759410638646,-151.0,0.00021687,2]
[388837970,1759410638656,-151.0,0.00021687,2]
[388837971,1759410638666,-500.0,0.00021687,2]
[388837972,1759410638676,-151.0,0.00021687,2]
[388837973,1759410638686,-151.0,0.00021687,2]
[388837974,1759410638697,-618.45682338,0.00021687,2]
[388837975,1759410638708,-151.0,0.00021687,2]
[388837976,1759410638718,-151.0,0.00021687,2]
[388837977,1759410638728,-151.0,0.00021687,2]
[388837978,1759410638738,-151.0,0.00021687,2]
[388837979,1759410638747,-151.0,0.00021687,2]
[388837980,1759410638757,-151.0,0.00021687,2]
[388837981,1759410638766,-151.0,0.00021687,2]
[388837982,1759410638776,-151.0,0.00021687,2]
[388837983,1759410638785,-151.0,0.00021687,2]
[388837984,1759410638795,-151.0,0.00021687,2]
[388837985,1759410638805,-151.0,0.00021687,2]
[388837986,1759410638816,-151.0,0.00021687,2]
[388837987,1759410638826,-151.0,0.00021687,2]
[388837988,1759410638835,-151.0,0.00021687,2]
[388837989,1759410638845,-151.0,0.00021687,2]
[388837990,1759410638855,-151.0,0.00021687,2]
[388837991,1759410638864,-151.0,0.00021687,2]
[388837992,1759410638874,-151.0,0.00021687,2]
[388837993,1759410638883,-151.0,0.00021687,2]
[388837994,1759410638894,-151.0,0.00021687,2]
[388837995,1759410638904,-151.0,0.00021687,2]
[388837996,1759410638913,-151.0,0.00021687,2]
[388837997,1759410638923,-151.0,0.00021687,2]
[388837998,1759410638932,-151.0,0.00021687,2]
[388837999,1759410638941,-151.0,0.00021687,2]
[388838000,1759410638951,-500.0,0.00021687,2]
[388838001,1759410638960,-315.60292304,0.00021687,2]
[388838002,1759410638969,-2898.144,0.00021687,2]
[388838003,1759410638979,-190.91087746,0.00021688,2]
[388838004,1759410638988,-16267.55460115,0.00021691,2]
[388838005,1759410638998,-150.0,0.00021691,4]
[388838006,1759410639008,-1466.985,0.00021692,2]
[388838007,1759410639017,-190.91087746,0.00021695,2]
[388838008,1759410639027,-269.8293392,0.000217,2]
[388838009,1759410639036,-150.0,0.000217,4]
[388838010,1759410639045,-257.36126675,0.00021724,2]
[388838011,1759410639054,-500.0,0.00021724,2]
[388838012,1759410639064,-250.0,0.00021724,2]
[388838013,1759410639074,-500.0,0.00021724,2]
[388838014,1759410639084,-195.0,0.00021724,2]
[388838015,1759410639093,-16267.55460115,0.00021741,2]
[388838016,1759410639102,-562.57436116,0.00021748,2]
[388838017,1759410639130,-862.42563884,0.00021748,2]
[388838018,1759410639140,-606.5,0.00021765,15]
[388838019,1759410639154,-1000.0,0.00021768,2]
[388838020,1759410639163,-1572.4404,0.00021781,2]
[388838021,1759410639173,-642.66162347,0.00021781,2]
[388838031,1759410639819,-286.05837653,0.00021781,2]
[388838032,1759410639829,-1566.71,0.00021783,2]
[388838035,1759410639840,-647.23162347,0.0002179,2]
[388838037,1759410639851,-1022.87071479,0.0002179,2]
[388838043,1759410639964,-5002.0893,0.0002179,2]
[388838044,1759410639976,-3308.62500004,0.0002179,2]
[388838064,1759410642639,-1491.01200499,0.0002179,2]
[388838065,1759410642798,-1000.0,0.0002137,2]
[388838066,1759410642842,-314.79870814,0.0002137,2]
[388838067,1759410642858,-1000.0898523,0.0002137,2]
[388838068,1759410642870,-489.11143956,0.0002137,2]
[388838069,1759410642879,-649.15565686,0.0002179,2]
[388838070,1759410642914,-10212.35768135,0.0002179,2]
[388838071,1759410642924,-305.9038539,0.0002179,2]
[388838072,1759410642933,-16267.55460115,0.00021791,2]
[388838073,1759410642943,-150.0,0.00021795,4]
[388838074,1759410642953,-207.0,0.00021804,2]
[388838075,1759410642969,-151.0,0.00021814,2]
[388838076,1759410642984,-207.0,0.00021815,2]
[388838077,1759410643001,-5000.0,0.00021816,2]
[388838078,1759410643011,-159.91170014,0.00021817,2]
[388838079,1759410643020,-697.25187648,0.00021817,2]
[388838081,1759410643029,-873.15143538,0.00021817,2]
[388838082,1759410643039,-348.8042035,0.00021817,2]
[388838083,1759410643048,-161.50922693,0.00021817,2]
[388838084,1759410643058,-5135.81736613,0.00021817,2]
[388838085,1759410643069,-22333.34198145,0.00021823,2]
[388838086,1759410643078,-341.83640161,0.00021829,2]
[388838087,1759410643089,-928.72,0.00021831,2]
[388838088,1759410643098,-16267.55460115,0.00021841,2]
[388838089,1759410643107,-22333.34198145,0.00021857,2]
[388838090,1759410643117,-1680.0,0.00021881,2]
[388838091,1759410643127,-151.0,0.00021888,2]
[388838092,1759410643137,-7831.1796208,0.00021888,2]
[388838093,1759410643150,-1000.0,0.00021889,2]
[388838094,1759410643160,-314.48375574,0.00021889,2]
[388838095,1759410643169,-254.17665,0.00021889,2]
[388838096,1759410643179,-837.7168803,0.0002189,2]
[388838097,1759410643190,-6506.1131609,0.0002189,2]
[388838098,1759410643200,-2554.1685247,0.0002189,2]
[388838099,1759410643210,-500.0,0.0002189,2]
[388838100,1759410643221,-22333.34198145,0.0002189,2]
[388838101,1759410643231,-124776.0,0.0002189,2]
[388838102,1759410643241,-151.47861609,0.0002189,4]
[388838103,1759410643251,-297.67478374,0.0002189,4]
[388838104,1759410643261,-166.61081421,0.0002189,4]
[388838105,1759410643271,-184.08999511,0.0002189,4]
[388838106,1759410643280,-298.14596181,0.0002189,4]
[388838107,1759410643290,-160.40144784,0.0002189,4]
[388838108,1759410643300,-161.64748627,0.0002189,4]
[388838109,1759410643309,-159.34593224,0.0002189,4]
[388838110,1759410643320,-266.05172454,0.0002189,4]
[388838111,1759410643330,-289.68908603,0.0002189,4]
[388838112,1759410643340,-154.63448611,0.0002189,4]
[388838113,1759410643350,-166.6804143,0.0002189,4]
[388838114,1759410643360,-206.51894039,0.0002189,4]
[388838115,1759410643369,-217.36057804,0.0002189,4]
[388838116,1759410643379,-208.34846588,0.0002189,4]
[388838117,1759410643388,-26357.0,0.0002189,2]
[388838118,1759410643398,-16267.55460115,0.00021891,2]
[388838119,1759410643408,-501.02323809,0.00021899,2]
[388838120,1759410643417,-434.74135229,0.00021899,2]
[388838121,1759410643426,-298.9502045,0.00021899,2]
[388838122,1759410643436,-500.0,0.00021899,2]
[388838123,1759410643445,-500.0,0.00021899,2]
[388838124,1759410643455,-302.99685294,0.00021899,2]
[388838125,1759410643464,-600.0,0.00021899,2]
[388838126,1759410643475,-197.55047715,0.00021899,2]
[388838127,1759410643484,-169.05422221,0.00021899,2]
[388838128,1759410643493,-1000.0,0.000219,3]
[388838129,1759410643503,-1000.0,0.000219,3]
[388838130,1759410643512,-1000.0,0.000219,3]
[388838131,1759410643521,-1000.0,0.000219,4]
[388838132,1759410643532,-1000.0,0.000219,4]
[388838133,1759410643547,-1000.0,0.000219,4]
[388838134,1759410643557,-1008.0,0.000219,4]
[388838135,1759410643567,-1000.0,0.000219,3]
[388838136,1759410643577,-1000.0,0.000219,3]
[388838137,1759410643587,-1000.0,0.000219,3]
[388838138,1759410643597,-1000.0,0.000219,3]
[388838139,1759410643607,-1000.0,0.000219,3]
[388838140,1759410643617,-1000.0,0.000219,5]
[388838141,1759410643627,-314.0,0.000219,4]
[388838142,1759410643637,-1000.0,0.000219,3]
[388838143,1759410643648,-1001.0,0.000219,3]
[388838144,1759410643658,-1000.0,0.000219,3]
[388838145,1759410643668,-243.0,0.000219,2]
[388838146,1759410643678,-446.4929,0.000219,2]
[388838147,1759410643688,-446.4929,0.000219,2]
[388838148,1759410643699,-514.0,0.000219,2]
[388838149,1759410643709,-385.0,0.000219,2]
[388838150,1759410643718,-381.7487,0.000219,2]
[388838151,1759410643728,-381.7487,0.000219,2]
[388838152,1759410643738,-786.0,0.000219,2]
[388838153,1759410643748,-899.80066042,0.00021907,2]
[388838154,1759410643759,-2166.78334981,0.00021912,2]
[388838155,1759410643769,-151.0,0.00021914,2]
[388838156,1759410643779,-1000.0,0.00021915,2]
[388838157,1759410643790,-13539.7090946,0.00021916,2]
[388838158,1759410643800,-150.0,0.00021916,2]
[388838159,1759410643810,-500.0,0.00021916,2]
[388838160,1759410643821,-150.0,0.00021916,2]
[388838161,1759410643831,-500.0,0.00021916,2]
[388838162,1759410643840,-150.0,0.00021916,2]
[388838163,1759410643850,-150.0,0.00021916,2]
[388838164,1759410643860,-1000.0,0.00021916,2]
[388838165,1759410643870,-1010.4682,0.00021916,2]
[388838166,1759410643880,-869.29468603,0.00021916,2]
[388838167,1759410643889,-150.0,0.00021916,2]
[388838168,1759410643899,-2000.08428475,0.00021916,2]
[388838169,1759410643910,-150.0,0.00021916,2]
[388838170,1759410643919,-150.0,0.00021916,2]
[388838171,1759410643929,-150.0,0.00021916,2]
[388838172,1759410643943,-150.0,0.00021916,2]
[388838173,1759410643954,-150.0,0.00021916,2]
[388838174,1759410643964,-150.0,0.00021916,2]
[388838175,1759410643974,-150.0,0.00021916,2]
[388838176,1759410643984,-500.0,0.00021916,2]
[388838177,1759410643994,-150.0,0.00021916,2]
[388838178,1759410644004,-500.0,0.00021916,2]
[388838179,1759410644014,-500.0,0.00021916,2]
[388838180,1759410644024,-1230.0,0.00021916,2]
[388838181,1759410644035,-151.05853888,0.00021916,2]
[388838182,1759410644044,-150.0,0.00021916,2]
[388838183,1759410644054,-500.0,0.00021916,2]
[388838184,1759410644065,-500.0,0.00021916,2]
[388838185,1759410644075,-150.0,0.00021916,2]
[388838186,1759410644085,-200.0,0.00021916,2]
[388838187,1759410644095,-563.0,0.00021916,2]
[388838188,1759410644105,-305.28744867,0.00021916,2]
[388838189,1759410644115,-300.0,0.00021916,2]
[388838190,1759410644125,-300.0,0.00021916,2]
[388838191,1759410644135,-1071.97243054,0.00021917,2]
[388838192,1759410644148,-186268.91131149,0.00021917,2]
[388838193,1759410644159,-1000.0,0.00021917,2]
[388838194,1759410644169,-1000.0,0.00021917,2]
[388838195,1759410644179,-1000.0,0.00021917,2]
[388838196,1759410644191,-1000.0,0.00021917,2]
[388838197,1759410644201,-1000.0,0.00021917,2]
[388838198,1759410644211,-1000.0,0.00021917,2]
[388838199,1759410644221,-1000.0,0.00021917,2]
[388838200,1759410644231,-1000.0,0.00021917,2]
[388838201,1759410644241,-1000.0,0.00021917,2]
[388838202,1759410644251,-1000.0,0.00021917,2]
[388838203,1759410644261,-1000.0,0.00021917,2]
[388838204,1759410644271,-1000.0,0.00021917,2]
[388838205,1759410644280,-1000.0,0.00021917,2]
[388838206,1759410644290,-1000.0,0.00021917,2]
[388838207,1759410644300,-1000.0,0.00021917,2]
[388838208,1759410644311,-1000.0,0.00021917,2]
[388838209,1759410644322,-500.0,0.00021917,2]
[388838210,1759410644331,-500.0,0.00021917,2]
[388838211,1759410644345,-500.0,0.00021917,2]
[388838212,1759410644355,-500.0,0.00021917,2]
[388838213,1759410644364,-500.0,0.00021917,2]
[388838214,1759410644374,-500.0,0.00021917,2]
[388838215,1759410644383,-1236.57,0.00021917,2]
[388838216,1759410644393,-500.0,0.00021917,2]
[388838217,1759410644403,-500.0,0.00021917,2]
[388838218,1759410644412,-500.0,0.00021917,2]
[388838219,1759410644421,-500.0,0.00021917,2]
[388838220,1759410644431,-500.0,0.00021917,2]
[388838221,1759410644440,-500.0,0.00021917,2]
[388838222,1759410644449,-500.0,0.00021917,2]
[388838223,1759410644458,-514.23,0.00021917,2]
[388838224,1759410644468,-500.0,0.00021917,2]
[388838225,1759410644478,-500.0,0.00021917,2]
[388838226,1759410644488,-500.0,0.00021917,2]
[388838227,1759410644497,-500.0,0.00021917,2]
[388838228,1759410644507,-500.0,0.00021917,2]
[388838229,1759410644516,-500.0,0.00021917,2]
[388838230,1759410644525,-500.0,0.00021917,2]
[388838231,1759410644535,-500.0,0.00021917,2]
[388838232,1759410644545,-500.0,0.00021917,2]
[388838233,1759410644554,-500.0,0.00021917,2]
[388838234,1759410644563,-500.0,0.00021917,2]
[388838235,1759410644576,-1220.32,0.00021917,2]
[388838237,1759410644739,-500.0,0.00021917,2]
[388838238,1759410644750,-791.52,0.00021917,2]
[388838239,1759410644760,-500.0,0.00021917,2]
[388838240,1759410644770,-608.36,0.00021917,2]
[388838241,1759410644779,-500.0,0.00021917,2]
[388838242,1759410644789,-1610.66,0.00021917,2]
[388838243,1759410644798,-500.0,0.00021917,2]
[388838244,1759410644807,-500.0,0.00021917,2]
[388838245,1759410644817,-1795.69962933,0.00021917,2]
[388838246,1759410644838,-7.08037067,0.00021917,2]
[388838247,1759410644847,-500.0,0.00021917,2]
[388838248,1759410644857,-500.0,0.00021917,2]
[388838249,1759410644866,-2088.65,0.00021917,2]
[388838250,1759410644876,-732.6,0.00021917,2]
[388838251,1759410644886,-525.9,0.00021917,2]
[388838252,1759410644896,-500.0,0.00021917,2]
[388838253,1759410644905,-500.0,0.00021917,2]
[388838254,1759410644915,-500.0,0.00021917,2]
[388838255,1759410644924,-500.0,0.00021917,2]
[388838256,1759410644933,-363.72875933,0.00021917,2]
[388838272,1759410645978,-153.03240117,0.0002189,2]
[388838274,1759410645988,-178.36999883,0.000219,7]
[388838276,1759410645999,-48.10000117,0.000219,7]
[388838278,1759410646009,-136.27124067,0.00021917,2]
[388838280,1759410646018,-210.48362207,0.00021917,2]
[388838284,1759410646046,-289.51637793,0.00021917,2]
[388838286,1759410646055,-500.0,0.00021917,2]
[388838288,1759410646064,-500.0,0.00021917,2]
[388838290,1759410646080,-500.0,0.00021917,2]
[388838292,1759410646089,-694.37,0.00021917,2]
[388838295,1759410646099,-500.0,0.00021917,2]
[388838297,1759410646108,-980.59676734,0.00021917,2]
[388838299,1759410646122,-134.47323266,0.00021917,2]
[388838301,1759410646132,-572.35,0.00021917,2]
[388838303,1759410646143,-500.0,0.00021917,2]
[388838305,1759410646155,-511.4,0.00021917,2]
[388838307,1759410646165,-500.0,0.00021917,2]
[388838309,1759410646175,-500.0,0.00021917,2]
[388838311,1759410646185,-500.0,0.00021917,2]
[388838312,1759410646195,-500.0,0.00021917,2]
[388838313,1759410646204,-500.0,0.00021917,2]
[388838314,1759410646213,-500.0,0.00021917,2]
[388838315,1759410646225,-500.0,0.00021917,2]
[388838316,1759410646234,-500.0,0.00021917,2]
[388838317,1759410646243,-500.0,0.00021917,2]
[388838318,1759410646253,-502.40335803,0.00021917,2]
[388838319,1759410646262,-500.0,0.00021917,2]
[388838320,1759410646272,-500.0,0.00021917,2]
[388838321,1759410646282,-500.0,0.00021917,2]
[388838322,1759410646291,-500.0,0.00021917,2]
[388838323,1759410646302,-500.0,0.00021917,2]
[388838324,1759410646311,-500.0,0.00021917,2]
[388838325,1759410646322,-500.0,0.00021917,2]
[388838326,1759410646332,-501.30517387,0.00021917,2]
[388838327,1759410646341,-500.0,0.00021917,2]
[388838328,1759410646351,-500.0,0.00021917,2]
[388838329,1759410646361,-500.0,0.00021917,2]
[388838330,1759410646372,-694.31,0.00021917,2]
[388838331,1759410646382,-500.0,0.00021917,2]
[388838332,1759410646391,-500.0,0.00021917,2]
[388838333,1759410646401,-306.3646299,0.00021917,2]
[388838334,1759410646411,-500.0,0.00021917,2]
[388838335,1759410646420,-500.0,0.00021917,2]
[388838336,1759410646429,-500.0,0.00021917,2]
[388838337,1759410646439,-500.0,0.00021917,2]
[388838338,1759410646448,-539.33,0.00021917,2]
[388838339,1759410646457,-500.0,0.00021917,2]
[388838340,1759410646466,-500.0,0.00021917,2]
[388838341,1759410646476,-500.0,0.00021917,2]
[388838342,1759410646485,-500.0,0.00021917,2]
[388838343,1759410646495,-500.0,0.00021917,2]
[388838344,1759410646504,-500.0,0.00021917,2]
[388838345,1759410646514,-500.0,0.00021917,2]
[388838346,1759410646524,-500.0,0.00021917,2]
[388838347,1759410646533,-500.0,0.00021917,2]
[388838348,1759410646543,-500.0,0.00021917,2]
[388838349,1759410646552,-624.34,0.00021917,2]
[388838350,1759410646562,-500.0,0.00021917,2]
[388838351,1759410646572,-500.0,0.00021917,2]
[388838352,1759410646582,-500.0,0.00021917,2]
[388838353,1759410646591,-500.0,0.00021917,2]
[388838354,1759410646601,-500.0,0.00021917,2]
[388838355,1759410646610,-500.0,0.00021917,2]
[388838356,1759410646620,-500.0,0.00021917,2]
[388838357,1759410646630,-500.0,0.00021917,2]
[388838358,1759410646639,-500.0,0.00021917,2]
[388838359,1759410646649,-1684.82,0.00021917,2]
[388838360,1759410646659,-500.0,0.00021917,2]
[388838361,1759410646669,-1686.96,0.00021917,2]
[388838362,1759410646678,-500.0,0.00021917,2]
[388838363,1759410646692,-505.30028447,0.00021917,2]
[388838364,1759410646703,-500.0,0.00021917,2]
[388838365,1759410646714,-608.41,0.00021917,2]
[388838366,1759410646724,-500.0,0.00021917,2]
[388838367,1759410646734,-500.0,0.00021917,2]
[388838368,1759410646745,-500.0,0.00021917,2]
[388838369,1759410646755,-500.0,0.00021917,2]
[388838370,1759410646764,-500.0,0.00021917,2]
[388838371,1759410646774,-500.0,0.00021917,2]
[388838372,1759410646784,-500.0,0.00021917,2]
[388838373,1759410646794,-500.0,0.00021917,2]
[388838374,1759410646805,-500.0,0.00021917,2]
[388838375,1759410646815,-500.0,0.00021917,2]
[388838376,1759410646826,-500.0,0.00021917,2]
[388838377,1759410646836,-500.0,0.00021917,2]
[388838378,1759410646846,-500.0,0.00021917,2]
[388838379,1759410646856,-525.58017249,0.00021917,2]
[388838380,1759410646867,-500.0,0.00021917,2]
[388838381,1759410646877,-500.0,0.00021917,2]
[388838382,1759410646887,-634.74,0.00021917,2]
[388838383,1759410646897,-500.0,0.00021917,2]
[388838384,1759410646907,-500.0,0.00021917,2]
[388838385,1759410646916,-500.0,0.00021917,2]
[388838386,1759410646926,-763.41,0.00021917,2]
[388838387,1759410646935,-444.71022727,0.00021917,2]
[388838389,1759410646945,-500.0,0.00021917,2]
[388838390,1759410646955,-500.0,0.00021917,2]
[388838391,1759410646964,-500.0,0.00021917,2]
[388838392,1759410646973,-500.0,0.00021917,2]
[388838393,1759410646983,-500.0,0.00021917,2]
[388838394,1759410646992,-500.0,0.00021917,2]
[388838395,1759410647002,-500.0,0.00021917,2]
[388838396,1759410647012,-500.0,0.00021917,2]
[388838397,1759410647023,-500.0,0.00021917,2]
[388838398,1759410647031,-500.0,0.00021917,2]
[388838399,1759410647041,-500.0,0.00021917,2]
[388838400,1759410647050,-500.0,0.00021917,2]
[388838401,1759410647059,-500.0,0.00021917,2]
[388838402,1759410647069,-500.0,0.00021917,2]
[388838403,1759410647078,-504.25644001,0.00021917,2]
[388838404,1759410647087,-500.0,0.00021917,2]
[388838405,1759410647096,-500.0,0.00021917,2]
[388838406,1759410647106,-500.0,0.00021917,2]
[388838407,1759410647115,-1461.1,0.00021917,2]
[388838408,1759410647124,-500.0,0.00021917,2]
[388838409,1759410647133,-500.0,0.00021917,2]
[388838410,1759410647145,-500.0,0.00021917,2]
[388838411,1759410647155,-500.0,0.00021917,2]
[388838412,1759410647164,-859.61,0.00021917,2]
[388838413,1759410647174,-500.0,0.00021917,2]
[388838414,1759410647183,-500.0,0.00021917,2]
[388838415,1759410647194,-500.0,0.00021917,2]
[388838416,1759410647203,-636.46,0.00021917,2]
[388838417,1759410647213,-500.0,0.00021917,2]
[388838418,1759410647225,-1114.8,0.00021917,2]
[388838419,1759410647234,-500.0,0.00021917,2]
[388838420,1759410647243,-1066.63,0.00021917,2]
[388838421,1759410647252,-774.38,0.00021917,2]
[388838422,1759410647262,-500.0,0.00021917,2]
[388838423,1759410647271,-500.0,0.00021917,2]
[388838424,1759410647280,-500.0,0.00021917,2]
[388838425,1759410647289,-500.0,0.00021917,2]
[388838426,1759410647300,-500.0,0.00021917,2]
[388838427,1759410647309,-500.0,0.00021917,2]
[388838428,1759410647322,-500.0,0.00021917,2]
[388838429,1759410647331,-500.0,0.00021917,2]
[388838430,1759410647341,-500.0,0.00021917,2]
[388838431,1759410647350,-500.0,0.00021917,2]
[388838432,1759410647359,-500.0,0.00021917,2]
[388838433,1759410647368,-1092.36,0.00021917,2]
[388838434,1759410647377,-500.0,0.00021917,2]
[388838435,1759410647386,-500.0,0.00021917,2]
[388838436,1759410647395,-500.0,0.00021917,2]
[388838437,1759410647404,-589.45,0.00021917,2]
[388838438,1759410647414,-500.0,0.00021917,2]
[388838439,1759410647423,-1070.44,0.00021917,2]
[388838440,1759410647434,-500.0,0.00021917,2]
[388838441,1759410647443,-500.0,0.00021917,2]
[388838442,1759410647452,-500.0,0.00021917,2]
[388838443,1759410647462,-500.0,0.00021917,2]